fUSD/lending_fUSD_20250607
["ID","MTS","AMOUNT","RATE_DAILY","PERIOD"]
[364836029,1749267048045,-508.9064521,0.00027397,5]
[364836031,1749267048056,-151.0,0.00027397,7]
[364836033,1749267048068,-480.0,0.00027397,5]
[364836035,1749267048077,-480.0,0.00027397,5]
[364836037,1749267048086,-407.11136607,0.00027397,5]
[364836039,1749267048096,-480.0,0.00027397,5]
[364836041,1749267048105,-480.0,0.00027397,5]
[364836043,1749267048115,-482.43779893,0.00027397,5]
[364836045,1749267048124,-242.83641,0.00027397,7]
[364836047,1749267048133,-242.83641,0.00027397,7]
[364836049,1749267048144,-480.0,0.00027397,5]
[364836051,1749267048153,-491.83914908,0.00027397,5]
[364836053,1749267048163,-242.83641,0.00027397,7]
[364836055,1749267048173,-242.83641,0.00027397,7]
[364836057,1749267048182,-480.0,0.00027397,5]
[364836059,1749267048191,-151.0,0.00027397,7]
[364836061,1749267048201,-151.0,0.00027397,7]
[364836063,1749267048211,-480.0,0.00027397,5]
[364836065,1749267048222,-480.0,0.00027397,5]
[364836067,1749267048231,-480.0,0.00027397,5]
[364836069,1749267048240,-480.0,0.00027397,5]
[364836070,1749267048249,-480.0,0.00027397,5]
[364836072,1749267048259,-480.0,0.00027397,5]
[364836074,1749267048268,-151.0,0.00027397,7]
[364836076,1749267048277,-1954.69,0.00027397,5]
[364836078,1749267048286,-485.57487691,0.00027397,5]
[364836080,1749267048295,-480.0,0.00027397,5]
[364836082,1749267048304,-151.0,0.00027397,7]
[364836084,1749267048314,-488.56,0.00027397,5]
[364836086,1749267048324,-480.0,0.00027397,5]
[364836088,1749267048333,-480.0,0.00027397,5]
[364836090,1749267048345,-480.0,0.00027397,5]
[364836092,1749267048356,-480.0,0.00027397,5]
[364836094,1749267048365,-480.0,0.00027397,5]
[364836096,1749267048376,-480.0,0.00027397,5]
[364836098,1749267048386,-480.0,0.00027397,5]
[364836100,1749267048396,-480.0,0.00027397,5]
[364836103,1749267048406,-157.335287,0.00027397,7]
[364836105,1749267048416,-157.335287,0.00027397,7]
[364836106,1749267048426,-480.0,0.00027397,5]
[364836108,1749267048436,-157.335287,0.00027397,7]
[364836111,1749267048446,-480.0,0.00027397,5]
[364836112,1749267048455,-157.335287,0.00027397,7]
[364836115,1749267048466,-502.66103318,0.00027397,5]
[364836116,1749267048475,-480.0,0.00027397,5]
[364836118,1749267048485,-534.07,0.00027397,5]
[364836121,1749267048495,-509.47112471,0.00027397,5]
[364836123,1749267048505,-480.0,0.00027397,5]
[364836125,1749267048516,-480.0,0.00027397,5]
[364836127,1749267048526,-498.04423124,0.00027397,5]
[364836129,1749267048536,-618.47,0.00027397,5]
[364836131,1749267048546,-480.0,0.00027397,5]
[364836133,1749267048555,-585.52,0.00027397,5]
[364836135,1749267048565,-480.0,0.00027397,5]
[364836136,1749267048575,-1363.86,0.00027397,5]
[364836138,1749267048585,-480.0,0.00027397,5]
[364836140,1749267048595,-466.81533169,0.00027397,5]
[364836142,1749267048605,-1115.25,0.00027397,5]
[364836143,1749267048615,-480.0,0.00027397,5]
[364836145,1749267048625,-480.0,0.00027397,5]
[364836147,1749267048635,-480.0,0.00027397,5]
[364836148,1749267048644,-151.0,0.00027397,7]
[364836150,1749267048654,-480.0,0.00027397,5]
[364836151,1749267048663,-151.0,0.00027397,7]
[364836152,1749267048673,-151.0,0.00027397,7]
[364836153,1749267048682,-216.157797,0.00027397,7]
[364836154,1749267048692,-216.157797,0.00027397,7]
[364836155,1749267048702,-774.18,0.00027397,5]
[364836156,1749267048713,-280.40569392,0.00027397,2]
[364836157,1749267048723,-480.0,0.00027397,5]
[364836158,1749267048733,-480.0,0.00027397,5]
[364836159,1749267048743,-480.0,0.00027397,5]
[364836160,1749267048752,-480.0,0.00027397,5]
[364836161,1749267048762,-480.0,0.00027397,5]
[364836162,1749267048771,-216.157797,0.00027397,7]
[364836163,1749267048782,-216.157797,0.00027397,7]
[364836164,1749267048791,-598.1,0.00027397,5]
[364836165,1749267048801,-480.0,0.00027397,5]
[364836166,1749267048811,-480.0,0.00027397,5]
[364836167,1749267048820,-480.0,0.00027397,5]
[364836168,1749267048830,-480.0,0.00027397,5]
[364836169,1749267048840,-722.49,0.00027397,5]
[364836170,1749267048850,-480.0,0.00027397,5]
[364836171,1749267048861,-534.116615,0.00027397,7]
[364836172,1749267048871,-480.0,0.00027397,5]
[364836173,1749267048880,-480.0,0.00027397,5]
[364836174,1749267048890,-534.116615,0.00027397,7]
[364836175,1749267048900,-151.0,0.00027397,7]
[364836176,1749267048910,-151.0,0.00027397,7]
[364836177,1749267048920,-151.0,0.00027397,7]
[364836178,1749267048931,-484.33104382,0.00027397,5]
[364836179,1749267048940,-534.116615,0.00027397,7]
[364836180,1749267048950,-455.59345022,0.00027397,5]
[364836181,1749267048960,-534.116615,0.00027397,7]
[364836182,1749267048971,-496.12803623,0.00027397,5]
[364836183,1749267048984,-431.3303936,0.00027397,5]
[364836184,1749267048993,-2075.41541554,0.00027397,5]
[364836185,1749267049003,-480.0,0.00027397,5]
[364836186,1749267049013,-1003.36,0.00027397,5]
[364836187,1749267049024,-480.0,0.00027397,5]
[364836188,1749267049035,-480.0,0.00027397,5]
[364836189,1749267049045,-480.0,0.00027397,5]
[364836190,1749267049055,-545.14,0.00027397,5]
[364836191,1749267049066,-480.0,0.00027397,5]
[364836192,1749267049077,-500.0,0.00027397,2]
[364836193,1749267049087,-1090.43,0.00027397,5]
[364836194,1749267049097,-500.0,0.00027397,2]
[364836195,1749267049107,-500.0,0.00027397,2]
[364836196,1749267049117,-480.0,0.00027397,5]
[364836197,1749267049127,-488.42832724,0.00027397,5]
[364836198,1749267049137,-500.0,0.00027397,2]
[364836199,1749267049148,-500.0,0.00027397,2]
[364836200,1749267049158,-500.0,0.00027397,2]
[364836201,1749267049168,-500.0,0.00027397,2]
[364836202,1749267049178,-500.0,0.00027397,2]
[364836203,1749267049188,-500.0,0.00027397,2]
[364836204,1749267049198,-500.0,0.00027397,2]
[364836205,1749267049208,-491.23809881,0.00027397,5]
[364836206,1749267049218,-500.0,0.00027397,2]
[364836207,1749267049228,-500.0,0.00027397,2]
[364836208,1749267049238,-480.0,0.00027397,5]
[364836209,1749267049248,-630.65,0.00027397,5]
[364836210,1749267049259,-845.75,0.00027397,5]
[364836211,1749267049269,-480.0,0.00027397,5]
[364836212,1749267049279,-480.0,0.00027397,5]
[364836213,1749267049288,-151.0,0.00027397,7]
[364836214,1749267049298,-151.0,0.00027397,7]
[364836215,1749267049309,-480.0,0.00027397,5]
[364836216,1749267049319,-480.0,0.00027397,5]
[364836217,1749267049328,-1268.78,0.00027397,5]
[364836218,1749267049339,-495.52185997,0.00027397,5]
[364836219,1749267049349,-480.0,0.00027397,5]
[364836220,1749267049360,-5000.0,0.00027397,2]
[364836221,1749267049370,-705.95,0.00027397,5]
[364836222,1749267049382,-5000.0,0.00027397,3]
[364836223,1749267049392,-4396.03790704,0.00027397,4]
[364836224,1749267049402,-480.0,0.00027397,5]
[364836225,1749267049413,-842.42,0.00027397,5]
[364836226,1749267049423,-480.0,0.00027397,5]
[364836227,1749267049433,-480.0,0.00027397,5]
[364836228,1749267049442,-480.0,0.00027397,5]
[364836229,1749267049452,-480.0,0.00027397,5]
[364836230,1749267049462,-501.27869741,0.00027397,5]
[364836231,1749267049472,-480.0,0.00027397,5]
[364836232,1749267049482,-983.97,0.00027397,5]
[364836233,1749267049494,-495.78,0.00027397,5]
[364836234,1749267049504,-480.0,0.00027397,5]
[364836235,1749267049514,-925.24,0.00027397,5]
[364836236,1749267049524,-903.48,0.00027397,5]
[364836237,1749267049534,-480.0,0.00027397,5]
[364836238,1749267049544,-482.56222229,0.00027397,5]
[364836239,1749267049554,-480.0,0.00027397,5]
[364836240,1749267049563,-480.0,0.00027397,5]
[364836241,1749267049573,-480.0,0.00027397,5]
[364836242,1749267049582,-480.0,0.00027397,5]
[364836243,1749267049592,-480.0,0.00027397,5]
[364836244,1749267049601,-151.0,0.00027397,7]
[364836245,1749267049611,-480.0,0.00027397,5]
[364836246,1749267049620,-480.0,0.00027397,5]
[364836247,1749267049630,-151.0,0.00027397,7]
[364836248,1749267049639,-480.0,0.00027397,5]
[364836249,1749267049648,-151.0,0.00027397,7]
[364836250,1749267049658,-480.0,0.00027397,5]
[364836251,1749267049667,-492.15611086,0.00027397,5]
[364836252,1749267049677,-151.0,0.00027397,7]
[364836253,1749267049686,-210.34723874,0.00027397,5]
[364836254,1749267049696,-151.0,0.00027397,7]
[364836255,1749267049705,-151.0,0.00027397,7]
[364836256,1749267049716,-480.0,0.00027397,5]
[364836257,1749267049725,-151.0,0.00027397,7]
[364836258,1749267049734,-480.0,0.00027397,5]
[364836259,1749267049744,-480.0,0.00027397,5]
[364836260,1749267049754,-151.0,0.00027397,7]
[364836261,1749267049763,-151.0,0.00027397,7]
[364836262,1749267049772,-151.0,0.00027397,7]
[364836263,1749267049781,-573.4,0.00027397,5]
[364836264,1749267049791,-480.0,0.00027397,5]
[364836265,1749267049801,-494.43292697,0.00027397,5]
[364836266,1749267049810,-480.0,0.00027397,5]
[364836267,1749267049820,-480.0,0.00027397,5]
[364836268,1749267049829,-151.0,0.00027397,7]
[364836269,1749267049839,-480.0,0.00027397,5]
[364836270,1749267049849,-151.0,0.00027397,7]
[364836271,1749267049859,-151.0,0.00027397,7]
[364836272,1749267049868,-480.0,0.00027397,5]
[364836273,1749267049877,-480.0,0.00027397,5]
[364836274,1749267049887,-500.0,0.00027397,5]
[364836275,1749267049896,-480.0,0.00027397,5]
[364836276,1749267049906,-500.0,0.00027397,5]
[364836277,1749267049915,-460.00088065,0.00027397,5]
[364836278,1749267049925,-480.0,0.00027397,5]
[364836279,1749267049936,-480.0,0.00027397,5]
[364836280,1749267049946,-480.0,0.00027397,5]
[364836281,1749267049956,-151.0,0.00027397,7]
[364836282,1749267049967,-170.381274,0.00027397,7]
[364836283,1749267049978,-480.0,0.00027397,5]
[364836284,1749267049990,-554.27,0.00027397,5]
[364836285,1749267050000,-480.0,0.00027397,5]
[364836286,1749267050009,-480.0,0.00027397,5]
[364836287,1749267050019,-151.0,0.00027397,7]
[364836288,1749267050030,-151.0,0.00027397,7]
[364836289,1749267050041,-480.0,0.00027397,5]
[364836290,1749267050052,-994.12,0.00027397,5]
[364836291,1749267050063,-466.2013567,0.00027397,5]
[364836292,1749267050074,-483.6766769,0.00027397,5]
[364836293,1749267050084,-611.81,0.00027397,5]
[364836294,1749267050095,-463.78547554,0.00027397,5]
[364836295,1749267050106,-480.0,0.00027397,5]
[364836296,1749267050116,-480.0,0.00027397,5]
[364836297,1749267050126,-706.88,0.00027397,5]
[364836298,1749267050135,-345.28943,0.00027397,7]
[364836299,1749267050145,-345.28943,0.00027397,7]
[364836300,1749267050154,-345.28943,0.00027397,7]
[364836301,1749267050164,-441.9268792,0.00027397,5]
[364836302,1749267050174,-480.0,0.00027397,5]
[364836303,1749267050183,-480.0,0.00027397,5]
[364836304,1749267050193,-1165.67,0.00027397,5]
[364836305,1749267050202,-345.28943,0.00027397,7]
[364836306,1749267050211,-345.28943,0.00027397,7]
[364836307,1749267050221,-345.28943,0.00027397,7]
[364836308,1749267050232,-480.0,0.00027397,5]
[364836309,1749267050241,-436.12102471,0.00027397,5]
[364836310,1749267050250,-480.0,0.00027397,5]
[364836311,1749267050260,-151.0,0.00027397,7]
[364836312,1749267050269,-480.0,0.00027397,5]
[364836313,1749267050280,-151.0,0.00027397,7]
[364836314,1749267050289,-151.0,0.00027397,7]
[364836315,1749267050299,-480.0,0.00027397,5]
[364836316,1749267050308,-480.0,0.00027397,5]
[364836317,1749267050318,-480.0,0.00027397,5]
[364836318,1749267050328,-480.0,0.00027397,5]
[364836319,1749267050338,-500.0,0.00027397,5]
[364836320,1749267050348,-500.0,0.00027397,5]
[364836321,1749267050359,-480.0,0.00027397,5]
[364836322,1749267050370,-430.2542926,0.00027397,5]
[364836323,1749267050381,-151.0,0.00027397,7]
[364836324,1749267050391,-151.0,0.00027397,7]
[364836325,1749267050400,-151.0,0.00027397,7]
[364836326,1749267050411,-480.0,0.00027397,5]
[364836327,1749267050422,-480.0,0.00027397,5]
[364836328,1749267050433,-480.0,0.00027397,5]
[364836329,1749267050443,-466.56905724,0.00027397,5]
[364836330,1749267050454,-151.0,0.00027397,7]
[364836331,1749267050464,-480.0,0.00027397,5]
[364836332,1749267050474,-151.0,0.00027397,7]
[364836333,1749267050483,-480.0,0.00027397,5]
[364836334,1749267050494,-480.0,0.00027397,5]
[364836335,1749267050506,-151.0,0.00027397,7]
[364836336,1749267050516,-480.0,0.00027397,5]
[364836337,1749267050526,-151.0,0.00027397,7]
[364836338,1749267050536,-789.96,0.00027397,5]
[364836339,1749267050546,-480.0,0.00027397,5]
[364836340,1749267050557,-151.0,0.00027397,7]
[364836341,1749267050824,-151.0,0.00027397,7]
[364836342,1749267050833,-151.0,0.00027397,7]
[364836343,1749267050843,-427.14605506,0.00027397,5]
[364836344,1749267050852,-163.67194531,0.00027397,5]
[364836345,1749267050862,-480.0,0.00027397,5]
[364836346,1749267050871,-151.0,0.00027397,7]
[364836347,1749267050880,-480.0,0.00027397,5]
[364836348,1749267050890,-480.0,0.00027397,5]
[364836349,1749267050899,-247.57441204,0.00027397,5]
[364836350,1749267050908,-480.0,0.00027397,5]
[364836351,1749267050917,-480.0,0.00027397,5]
[364836352,1749267050928,-431.98009251,0.00027397,5]
[364836353,1749267050938,-480.0,0.00027397,5]
[364836354,1749267050948,-779.14,0.00027397,5]
[364836355,1749267050958,-480.0,0.00027397,5]
[364836356,1749267050968,-754.4,0.00027397,5]
[364836357,1749267050979,-480.0,0.00027397,5]
[364836358,1749267050991,-480.0,0.00027397,5]
[364836359,1749267051002,-421.28359058,0.00027397,5]
[364836360,1749267051011,-10000.0,0.00027397,7]
[364836361,1749267051023,-10000.0,0.00027397,7]
[364836362,1749267051033,-480.0,0.00027397,5]
[364836363,1749267051044,-10000.0,0.00027397,7]
[364836364,1749267051056,-480.0,0.00027397,5]
[364836365,1749267051068,-943.75,0.00027397,5]
[364836366,1749267051078,-480.79945134,0.00027397,5]
[364836367,1749267051089,-480.0,0.00027397,5]
[364836368,1749267051099,-151.0,0.00027397,7]
[364836369,1749267051108,-700.75,0.00027397,5]
[364836370,1749267051118,-151.0,0.00027397,7]
[364836371,1749267051129,-151.0,0.00027397,7]
[364836372,1749267051138,-151.0,0.00027397,7]
[364836373,1749267051147,-480.0,0.00027397,5]
[364836374,1749267051156,-753.65,0.00027397,5]
[364836375,1749267051166,-427.63098731,0.00027397,5]
[364836376,1749267051176,-570.08323876,0.00027397,5]
[364836377,1749267051185,-552.87818433,0.00027397,5]
[364836378,1749267051194,-480.0,0.00027397,5]
[364836379,1749267051203,-428.45265322,0.00027397,5]
[364836380,1749267051213,-362.06822644,0.00027397,5]
[364836381,1749267051222,-569.34428304,0.00027397,5]
[364836382,1749267051231,-480.0,0.00027397,5]
[364836383,1749267051241,-480.0,0.00027397,5]
[364836384,1749267051250,-592.62,0.00027397,5]
[364836385,1749267051261,-379.24589811,0.00027397,5]
[364836386,1749267051271,-500.0,0.00027397,5]
[364836387,1749267051280,-480.0,0.00027397,5]
[364836388,1749267051290,-500.0,0.00027397,5]
[364836389,1749267051299,-500.0,0.00027397,5]
[364836390,1749267051310,-500.0,0.00027397,5]
[364836391,1749267051319,-500.0,0.00027397,5]
[364836392,1749267051329,-480.0,0.00027397,5]
[364836393,1749267051339,-500.0,0.00027397,5]
[364836394,1749267051349,-500.0,0.00027397,5]
[364836395,1749267051359,-500.0,0.00027397,5]
[364836396,1749267051368,-237.84221028,0.00027397,5]
[364836397,1749267051378,-850.33,0.00027397,5]
[364836398,1749267051388,-480.0,0.00027397,5]
[364836399,1749267051397,-485.72205612,0.00027397,5]
[364836400,1749267051407,-501.50488483,0.00027397,5]
[364836401,1749267051417,-601.8,0.00027397,5]
[364836402,1749267051427,-460.0380426,0.00027397,5]
[364836403,1749267051436,-480.0,0.00027397,5]
[364836404,1749267051446,-480.0,0.00027397,5]
[364836405,1749267051456,-151.0,0.00027397,7]
[364836406,1749267051466,-151.0,0.00027397,7]
[364836407,1749267051476,-1504.99,0.00027397,5]
[364836408,1749267051486,-151.0,0.00027397,7]
[364836409,1749267051495,-151.0,0.00027397,7]
[364836410,1749267051505,-1932.61,0.00027397,5]
[364836411,1749267051514,-494.24,0.00027397,5]
[364836412,1749267051524,-151.0,0.00027397,7]
[364836413,1749267051533,-480.0,0.00027397,5]
[364836414,1749267051543,-168.003865,0.00027397,7]
[364836415,1749267051553,-488.13758326,0.00027397,5]
[364836416,1749267051563,-480.0,0.00027397,5]
[364836417,1749267051572,-480.0,0.00027397,5]
[364836418,1749267051582,-325.5077297,0.00027397,5]
[364836419,1749267051593,-736.47,0.00027397,5]
[364836420,1749267051602,-623.80910127,0.00027397,5]
[364836421,1749267051612,-480.0,0.00027397,5]
[364836422,1749267051622,-853.62,0.00027397,5]
[364836423,1749267051631,-480.0,0.00027397,5]
[364836424,1749267051641,-480.0,0.00027397,5]
[364836425,1749267051650,-480.0,0.00027397,5]
[364836426,1749267051660,-480.0,0.00027397,5]
[364836427,1749267051670,-480.0,0.00027397,5]
[364836428,1749267051679,-366.6385592,0.00027397,5]
[364836429,1749267051689,-480.0,0.00027397,5]
[364836430,1749267051698,-480.0,0.00027397,5]
[364836431,1749267051708,-480.0,0.00027397,5]
[364836432,1749267051718,-949.58,0.00027397,5]
[364836433,1749267051728,-842.89,0.00027397,5]
[364836434,1749267051737,-480.0,0.00027397,5]
[364836435,1749267051746,-179.05386841,0.00027397,5]
[364836436,1749267051756,-553.1,0.00027397,5]
[364836437,1749267051766,-186.45063177,0.00027397,5]
[364836438,1749267051775,-480.0,0.00027397,5]
[364836439,1749267051785,-1000.0,0.00027397,5]
[364836440,1749267051795,-151.0,0.00027397,7]
[364836441,1749267051804,-151.0,0.00027397,7]
[364836442,1749267051821,-151.0,0.00027397,7]
[364836443,1749267051831,-478.32202349,0.00027397,5]
[364836444,1749267051842,-480.0,0.00027397,5]
[364836445,1749267051852,-480.0,0.00027397,5]
[364836446,1749267051862,-480.0,0.00027397,5]
[364836447,1749267051873,-480.0,0.00027397,5]
[364836448,1749267051883,-486.47136559,0.00027397,5]
[364836449,1749267051893,-485.65283659,0.00027397,5]
[364836450,1749267051903,-480.0,0.00027397,5]
[364836451,1749267051914,-323.98550522,0.00027397,5]
[364836452,1749267051924,-480.0,0.00027397,5]
[364836453,1749267051934,-480.0,0.00027397,5]
[364836454,1749267051944,-495.20755165,0.00027397,5]
[364836455,1749267051956,-480.0,0.00027397,5]
[364836456,1749267051966,-930.43,0.00027397,5]
[364836457,1749267051977,-483.54103888,0.00027397,5]
[364836458,1749267051990,-480.0,0.00027397,5]
[364836459,1749267052001,-564.70409553,0.00027397,5]
[364836460,1749267052011,-480.0,0.00027397,5]
[364836461,1749267052022,-483.29393376,0.00027397,5]
[364836462,1749267052034,-480.0,0.00027397,5]
[364836463,1749267052044,-488.949945,0.00027397,5]
[364836464,1749267052056,-480.0,0.00027397,2]
[364836465,1749267052066,-557.93229089,0.00027397,5]
[364836466,1749267052076,-244.362178,0.00027397,7]
[364836467,1749267052086,-244.362178,0.00027397,7]
[364836468,1749267052096,-916.35,0.00027397,5]
[364836469,1749267052106,-244.362178,0.00027397,7]
[364836470,1749267052116,-244.362178,0.00027397,7]
[364836471,1749267052127,-589.04,0.00027397,5]
[364836472,1749267052137,-480.0,0.00027397,5]
[364836473,1749267052148,-482.95809485,0.00027397,5]
[364836474,1749267052158,-765.06,0.00027397,5]
[364836475,1749267052168,-480.0,0.00027397,5]
[364836476,1749267052179,-943.25,0.00027397,5]
[364836477,1749267052189,-503.40460421,0.00027397,5]
[364836478,1749267052199,-476.46498868,0.00027397,5]
[364836479,1749267052210,-620.08,0.00027397,5]
[364836480,1749267052220,-480.0,0.00027397,5]
[364836481,1749267052231,-807.46,0.00027397,5]
[364836482,1749267052242,-499.44479943,0.00027397,5]
[364836483,1749267052252,-493.53946727,0.00027397,5]
[364836484,1749267052269,-151.0,0.00027397,7]
[364836485,1749267052279,-151.0,0.00027397,7]
[364836486,1749267052290,-480.0,0.00027397,5]
[364836487,1749267052300,-151.0,0.00027397,7]
[364836488,1749267052311,-151.0,0.00027397,7]
[364836489,1749267052322,-1648.23,0.00027397,5]
[364836490,1749267052332,-490.41264568,0.00027397,5]
[364836491,1749267052343,-607.29,0.00027397,5]
[364836492,1749267052354,-350.28167534,0.00027397,5]
[364836493,1749267052365,-620.28,0.00027397,5]
[364836494,1749267052376,-480.0,0.00027397,5]
[364836495,1749267052387,-480.0,0.00027397,5]
[364836496,1749267052398,-151.0,0.00027397,7]
[364836497,1749267052408,-769.25,0.00027397,5]
[364836498,1749267052419,-151.0,0.00027397,7]
[364836499,1749267052429,-2181.17,0.00027397,5]
[364836500,1749267052440,-480.0,0.00027397,5]
[364836501,1749267052450,-489.64242432,0.00027397,5]
[364836502,1749267052460,-229.668718,0.00027397,7]
[364836503,1749267052471,-480.0,0.00027397,5]
[364836504,1749267052482,-1412.46,0.00027397,5]
[364836505,1749267052492,-480.0,0.00027397,5]
[364836506,1749267052503,-593.81,0.00027397,5]
[364836507,1749267052512,-489.73576939,0.00027397,5]
[364836508,1749267052522,-229.668718,0.00027397,7]
[364836509,1749267052533,-504.56,0.00027397,5]
[364836510,1749267052542,-5750.84,0.00027397,5]
[364836511,1749267052552,-480.0,0.00027397,5]
[364836512,1749267052562,-151.0,0.00027397,7]
[364836513,1749267052572,-480.0,0.00027397,5]
[364836514,1749267052583,-151.0,0.00027397,7]
[364836515,1749267052593,-151.0,0.00027397,7]
[364836516,1749267052603,-480.0,0.00027397,5]
[364836517,1749267052613,-480.0,0.00027397,5]
[364836518,1749267052623,-520.7793461,0.00027397,5]
[364836519,1749267052633,-480.0,0.00027397,5]
[364836520,1749267052644,-301.576605,0.00027397,7]
[364836521,1749267052654,-301.576605,0.00027397,7]
[364836522,1749267052664,-151.0,0.00027397,7]
[364836523,1749267052674,-301.576605,0.00027397,7]
[364836524,1749267052684,-151.0,0.00027397,7]
[364836525,1749267052699,-490.42543664,0.00027397,5]
[364836526,1749267052709,-151.0,0.00027397,7]
[364836527,1749267052719,-429.296062,0.00027397,7]
[364836528,1749267052730,-301.576605,0.00027397,7]
[364836529,1749267052741,-1267.21,0.00027397,5]
[364836530,1749267052751,-301.576605,0.00027397,7]
[364836531,1749267052761,-10955.06,0.00027397,5]
[364836532,1749267052771,-301.576605,0.00027397,7]
[364836533,1749267052782,-480.0,0.00027397,5]
[364836534,1749267052792,-480.0,0.00027397,5]
[364836535,1749267052802,-480.0,0.00027397,5]
[364836536,1749267052812,-429.296062,0.00027397,7]
[364836537,1749267052822,-478.87960206,0.00027397,5]
[364836538,1749267052831,-480.0,0.00027397,5]
[364836539,1749267052842,-480.0,0.00027397,5]
[364836540,1749267052852,-480.0,0.00027397,5]
[364836541,1749267052862,-498.7067146,0.00027397,5]
[364836542,1749267052872,-484.17604451,0.00027397,5]
[364836543,1749267052882,-480.0,0.00027397,5]
[364836544,1749267052897,-484.29621027,0.00027397,5]
[364836545,1749267052908,-480.0,0.00027397,5]
[364836546,1749267052918,-7087.11,0.00027397,5]
[364836547,1749267052929,-41027.68,0.00027397,5]
[364836548,1749267052940,-2433.15,0.00027397,5]
[364836549,1749267052950,-480.0,0.00027397,5]
[364836550,1749267052960,-480.0,0.00027397,5]
[364836551,1749267052971,-480.0,0.00027397,5]
[364836552,1749267052984,-480.0,0.00027397,5]
[364836553,1749267052994,-480.0,0.00027397,5]
[364836554,1749267053004,-7622.05,0.00027397,5]
[364836555,1749267053014,-835.03,0.00027397,5]
[364836556,1749267053025,-480.0,0.00027397,5]
[364836557,1749267053035,-480.0,0.00027397,5]
[364836558,1749267053045,-480.0,0.00027397,5]
[364836559,1749267053055,-3297.59,0.00027397,5]
[364836560,1749267053067,-2182.78,0.00027397,5]
[364836561,1749267053078,-480.0,0.00027397,5]
[364836562,1749267053088,-1072.0,0.00027397,5]
[364836563,1749267053098,-480.0,0.00027397,5]
[364836564,1749267053107,-480.0,0.00027397,5]
[364836565,1749267053117,-3803.92,0.00027397,5]
[364836566,1749267053127,-480.0,0.00027397,5]
[364836567,1749267053138,-607.41,0.00027397,5]
[364836568,1749267053149,-480.0,0.00027397,5]
[364836569,1749267053160,-675.89,0.00027397,5]
[364836570,1749267053170,-529.43157275,0.00027397,5]
[364836571,1749267053180,-1367.55,0.00027397,5]
[364836572,1749267053190,-1039.63,0.00027397,5]
[364836573,1749267053201,-480.0,0.00027397,5]
[364836574,1749267053211,-484.81840201,0.00027397,5]
[364836575,1749267053222,-450.91416255,0.00027397,5]
[364836576,1749267053232,-482.33615052,0.00027397,5]
[364836577,1749267053366,-345.79212705,0.00027397,5]
[364836578,1749267053376,-480.0,0.00027397,5]
[364836579,1749267053386,-2010.42,0.00027397,5]
[364836580,1749267053396,-1045.76,0.00027397,5]
[364836581,1749267053407,-151.0,0.00027397,7]
[364836582,1749267053416,-151.0,0.00027397,7]
[364836583,1749267053426,-1111.08,0.00027397,5]
[364836584,1749267053436,-483.6911322,0.00027397,5]
[364836585,1749267053446,-151.0,0.00027397,7]
[364836586,1749267053456,-480.26838591,0.00027397,5]
[364836587,1749267053466,-480.0,0.00027397,5]